bitfinex/quotes_ETHUSD_20251120
["timestamp","ask_amount","ask_price","bid_price","bid_amount"]
[1763596801957,0.002,3028.4,3028.0,0.03402509]
[1763596802310,0.4671,3028.1,3028.0,0.001]
[1763596802842,0.9404,3028.1,3028.0,0.001]
[1763596808030,1.24958819,3028.1,3028.0,0.001]
[1763596808224,1.24958819,3028.1,3027.9,0.001]
[1763596808425,0.002,3028.4,3027.9,0.001]
[1763596808426,0.9736,3028.0,3027.9,0.001]
[1763596808646,1.28270756,3028.0,3027.7,0.001]
[1763596808820,0.6611,3027.8,3027.7,0.001]
[1763596809247,1.1591,3027.8,3027.7,0.001]
[1763596810818,0.6611,3027.8,3027.7,0.001]
[1763596811445,1.1591,3027.8,3027.7,0.001]
[1763596816566,0.31782742,3028.2,3027.7,0.0054]
[1763596816785,0.5,3028.4,3027.8,3.30272805]
[1763596816943,0.498,3028.3,3027.8,3.30272805]
[1763596817150,0.498,3028.3,3027.8,6.6054561]
[1763596817663,0.498,3028.3,3027.8,3.30272805]
[1763596817864,0.4756,3027.9,3027.7,0.001]
[1763596818071,0.4756,3027.8,3027.7,0.001]
[1763596818250,0.9736,3027.8,3027.7,0.001]
[1763596818632,0.4756,3027.8,3027.7,0.001]
[1763596819065,0.498,3028.3,3027.7,0.0054]
[1763596819366,0.002,3028.1,3027.7,0.0054]
[1763596819749,0.498,3028.0,3027.7,0.001]
[1763596820463,0.002,3028.1,3027.9,0.0044]
[1763596821037,0.002,3028.1,3028.0,0.0044]
[1763596821360,0.002,3028.1,3027.7,10.02151139]
[1763596821361,0.4756,3027.8,3027.7,3.41583713]
[1763596821557,0.4756,3027.8,3027.7,0.001]
[1763596821869,0.9736,3027.8,3027.7,0.001]
[1763596822166,0.5,3028.1,3027.7,0.001]
[1763596822864,0.4756,3027.8,3027.7,0.001]
[1763596823385,0.9736,3027.8,3027.7,0.001]
[1763596823885,0.002,3028.1,3027.7,0.001]
[1763596824056,0.4756,3027.8,3027.7,0.001]
[1763596824553,0.5,3028.1,3027.7,0.0054]
[1763596824554,0.002,3028.1,3027.7,0.0054]
[1763596824748,0.002,3028.1,3027.7,0.001]
[1763596824749,0.4756,3027.8,3027.7,0.001]
[1763596824954,0.4756,3027.8,3027.7,3.30383713]
[1763596825156,0.498,3028.0,3027.7,6.60667426]
[1763596825351,0.4756,3027.8,3027.7,0.001]
[1763596825566,0.4756,3027.8,3027.7,3.30383713]
[1763596825767,0.9736,3027.8,3027.7,3.30383713]
[1763596826778,0.9736,3027.8,3027.7,0.001]
[1763596827474,0.4756,3027.8,3027.7,0.001]
[1763596827877,0.9462,3027.8,3027.7,0.001]
[1763596829486,0.4756,3027.8,3027.7,0.001]
[1763596829687,0.4726,3028.1,3027.7,0.001]
[1763596829887,0.455,3027.8,3027.7,0.001]
[1763596831678,0.4726,3028.1,3027.7,0.001]
[1763596831971,0.455,3027.8,3027.7,0.001]
[1763596832884,0.4726,3028.1,3027.7,0.001]
[1763596834167,0.002,3028.1,3027.7,0.001]
[1763596835496,0.002,3028.1,3027.7,6.60667426]
[1763596835713,0.455,3027.8,3027.7,3.30383713]
[1763596835995,0.455,3027.8,3027.7,0.001]
[1763596836206,0.9256,3027.8,3027.7,0.001]
[1763596837003,0.4726,3028.1,3027.7,0.001]
[1763596837376,0.455,3027.8,3027.7,0.001]
[1763596837794,0.9256,3027.8,3027.7,0.001]
[1763596838999,0.916,3027.8,3027.7,0.001]
[1763596841892,0.916,3027.8,3027.7,0.171]
[1763596842293,0.916,3027.8,3027.7,3.47383713]
[1763596844316,0.916,3027.8,3027.7,0.171]
[1763596846509,0.916,3027.8,3027.6,0.001]
[1763596846510,0.405504,3027.7,3027.6,0.001]
[1763596846701,2.56720148,3027.7,3027.6,0.001]
[1763596847024,3.47419412,3027.7,3027.6,0.001]
[1763596850394,2.71869353,3027.7,3027.6,0.001]
[1763596850603,1.13788523,3027.7,3027.6,0.001]
[1763596850805,0.9342,3027.7,3027.6,0.001]
[1763596857302,1.339704,3027.7,3027.6,0.001]
[1763596857603,1.64862663,3027.7,3027.6,0.001]
[1763596858103,1.24312263,3027.7,3027.6,0.001]
[1763596860058,1.64862663,3027.7,3027.6,0.001]
[1763596864735,1.90418856,3027.7,3027.6,0.001]
[1763596867448,3.52287859,3027.7,3027.6,0.001]
[1763596869464,4.04099978,3027.7,3027.6,0.001]
[1763596869670,4.04099978,3027.7,3027.5,0.001]
[1763596869671,1.31249664,3027.6,3027.3,0.001]
[1763596869871,0.405504,3027.3,3027.2,0.001]
[1763596870020,2.99718895,3027.3,3027.2,0.001]
[1763596870219,0.405504,3027.1,3027.0,0.001]
[1763596870525,2.0184783,3027.1,3027.0,0.001]
[1763596870853,2.92547094,3027.1,3027.0,0.001]
[1763596871056,3.63705817,3027.1,3027.0,0.001]
[1763596871951,3.63695133,3027.1,3027.0,0.001]
[1763596872323,3.63691415,3027.1,3027.0,0.001]
[1763596873640,3.63681972,3027.1,3027.0,0.001]
[1763596877722,7.07271251,3027.1,3027.0,0.001]
[1763596877928,7.07271251,3027.1,3025.9,0.001]
[1763596877929,0.405504,3026.9,3025.9,0.001]
[1763596878127,2.3324565,3027.0,3025.9,0.001]
[1763596878128,0.88950358,3026.6,3025.9,0.001]
[1763596878328,0.405504,3026.4,3025.9,0.001]
[1763596878558,0.3088282,3026.4,3025.9,0.001]
[1763596878759,0.7143322,3026.5,3025.9,0.001]
[1763596878948,0.405504,3026.2,3025.9,0.001]
[1763596879150,0.4851,3026.0,3025.9,0.001]
[1763596879562,0.9734,3026.0,3025.9,0.001]
[1763596881966,1.378904,3026.0,3025.9,0.001]
[1763596882434,1.687231,3026.0,3025.9,0.001]
[1763596882641,1.8559541,3026.0,3025.9,0.001]
[1763596883256,0.4770501,3026.0,3025.9,0.001]
[1763596883588,0.405504,3026.6,3025.9,0.1764]
[1763596883742,0.30827614,3026.6,3025.9,0.001]
[1763596884088,0.405504,3026.5,3025.9,0.001]
[1763596884382,0.71378014,3026.5,3025.9,0.001]
[1763596884678,0.4851,3026.0,3025.9,0.001]
[1763596884850,0.9734,3026.0,3025.9,0.001]
[1763596885669,0.4851,3026.0,3025.9,0.001]
[1763596886764,0.9825,3026.0,3025.9,0.001]
[1763596887574,0.4851,3026.0,3025.9,0.001]
[1763596888170,0.9825,3026.0,3025.9,0.001]
[1763596888372,0.4851,3026.0,3025.9,0.001]
[1763596889254,1.388004,3026.0,3025.9,0.001]
[1763596889570,1.86614486,3026.0,3025.9,0.001]
[1763596889976,1.36874486,3026.0,3025.9,0.001]
[1763596890179,1.86614486,3026.0,3025.9,0.001]
[1763596890380,1.36874486,3026.0,3025.9,0.001]
[1763596894084,9.2131375,3026.0,3025.9,0.001]
[1763596894278,9.92465603,3026.0,3025.9,0.001]
[1763596895359,9.92465603,3026.0,3025.5,0.001]
[1763596895360,1.7645605,3025.9,3025.5,0.001]
[1763596895557,1.93282301,3025.6,3025.5,0.001]
[1763596895888,2.9702065,3025.6,3025.5,0.001]
[1763596896089,1.31249664,3025.5,3025.2,0.001]
[1763596896385,0.858004,3025.3,3025.2,0.001]
[1763596896546,2.07348797,3025.3,3025.2,0.001]
[1763596896748,4.67993852,3025.3,3025.2,0.001]
[1763596896957,4.85633852,3025.3,3025.2,0.001]
[1763596897481,3.96670933,3025.3,3025.2,0.001]
[1763596897787,4.85633852,3025.3,3025.2,0.001]
[1763596897986,4.41877319,3025.3,3025.2,0.001]
[1763596898176,0.405504,3025.2,3023.7,0.1764]
[1763596898489,0.405504,3024.8,3023.5,0.1764]
[1763596898653,0.405504,3024.6,3023.5,0.1764]
[1763596898853,0.405504,3024.4,3023.5,0.1764]
[1763596899155,0.71399533,3024.4,3023.5,0.1764]
[1763596899354,0.405504,3024.2,3023.5,0.3528]
[1763596899599,0.89040533,3024.4,3023.5,0.3528]
[1763596899801,0.405504,3024.2,3023.5,0.3528]
[1763596900154,0.6989,3023.6,3023.3,0.001]
[1763596900501,0.405504,3024.2,3023.3,0.001]
[1763596900502,0.405504,3024.1,3023.3,0.001]
[1763596900696,0.71384397,3024.1,3023.5,0.1764]
[1763596900850,0.71384397,3024.1,3023.3,0.001]
[1763596900851,0.405504,3023.9,3023.3,0.001]
[1763596901055,0.71384397,3023.9,3023.3,0.001]
[1763596901565,0.405504,3024.2,3023.3,0.1774]
[1763596901761,0.71351392,3024.2,3023.3,0.1774]
[1763596901965,0.405504,3024.0,3023.3,0.001]
[1763596902191,0.71351392,3024.0,3023.3,0.001]
[1763596902563,0.2,3023.9,3023.3,0.001]
[1763596902879,0.405504,3023.8,3023.3,0.001]
[1763596903186,0.494,3024.3,3023.3,0.1774]
[1763596903385,0.405504,3023.8,3023.3,0.001]
[1763596903892,0.405504,3023.8,3023.3,0.1774]
[1763596904266,0.1764,3024.4,3023.7,0.1764]
[1763596904586,0.694,3024.7,3023.3,0.001]
[1763596904587,0.6989,3023.8,3023.3,0.001]
[1763596904792,0.405504,3023.4,3023.3,0.001]
[1763596905084,0.4989,3023.4,3023.3,0.001]
[1763596905265,1.398404,3023.4,3023.3,0.001]
[1763596905466,1.56898952,3023.4,3023.3,0.001]
[1763596906280,1.31249664,3023.3,3022.9,0.001]
[1763596906480,0.904404,3023.0,3022.9,0.001]
[1763596906981,1.398404,3023.0,3022.9,0.001]
[1763596907291,1.70559841,3023.0,3022.9,0.001]
[1763596907457,1.87615825,3023.0,3022.9,0.001]
[1763596909295,2.00874533,3023.0,3022.9,0.001]
[1763596910296,1.51474533,3023.0,3022.9,0.001]
[1763596910463,0.17058552,3023.4,3022.9,0.1784]
[1763596910657,0.79724985,3023.6,3022.9,0.1784]
[1763596910859,0.405504,3023.5,3022.9,0.1784]
[1763596911093,0.694,3023.8,3022.9,0.1784]
[1763596911519,0.1784,3023.7,3022.9,0.1784]
[1763596912400,0.405504,3023.6,3022.9,0.1784]
[1763596913101,0.2,3023.9,3022.9,0.1784]
[1763596913301,0.3784,3023.9,3022.9,0.001]
[1763596913503,0.4989,3023.0,3022.9,0.001]
[1763596913683,0.904404,3023.0,3022.9,0.001]
[1763596913880,0.4989,3022.2,3020.9,0.001]
[1763596914081,0.405504,3022.1,3020.9,0.001]
[1763596914290,0.405504,3022.1,3020.9,0.1834]
[1763596914488,0.405504,3022.0,3020.9,0.1834]
[1763596914794,0.588904,3022.0,3020.9,0.1834]
[1763596915106,0.2,3021.9,3020.9,0.1834]
[1763596915403,0.2,3021.9,3020.9,0.001]
[1763596915404,0.405504,3021.7,3020.9,0.001]
[1763596915918,0.899504,3021.7,3020.9,0.001]
[1763596916071,0.405504,3021.7,3020.9,0.001]
[1763596916394,0.405504,3021.8,3021.0,0.1824]
[1763596916978,0.1834,3022.0,3021.0,0.1824]
[1763596916979,0.405504,3021.9,3021.0,0.1824]
[1763596917173,0.899504,3021.9,3020.9,0.001]
[1763596917574,0.405504,3021.7,3020.9,0.001]
[1763596918010,0.405504,3021.7,3020.9,0.1834]
[1763596918309,0.405504,3021.5,3020.9,0.001]
[1763596919276,0.494,3021.4,3020.9,0.001]
[1763596919481,0.405504,3021.3,3020.9,0.001]
[1763596919889,0.904404,3021.0,3020.9,0.001]
[1763596920636,1.575804,3021.0,3020.9,0.001]
[1763596921725,0.582904,3021.0,3020.9,0.001]
[1763596921896,0.405504,3021.0,3020.9,0.001]
[1763596922096,1.398404,3021.0,3020.9,0.001]
[1763596922396,1.53105528,3021.0,3020.9,0.001]
[1763596923432,1.53105528,3021.0,3020.5,0.001]
[1763596923433,1.31249664,3020.9,3020.5,0.001]
[1763596923632,1.31249664,3020.9,3017.7,3.31371944]
[1763596923633,0.405504,3020.2,3017.7,3.31371944]
[1763596923846,0.405504,3020.2,3018.0,0.1854]
[1763596923847,0.405504,3020.1,3018.0,0.1854]
[1763596924013,1.20594316,3020.1,3018.0,0.1854]
[1763596924328,0.405504,3019.9,3018.0,0.1854]
[1763596924831,1.188,3019.8,3018.0,0.1854]
[1763596925126,0.405504,3019.6,3018.0,0.1854]
[1763596925289,0.71162068,3019.6,3018.1,0.1854]
[1763596925489,0.71162068,3019.6,3017.5,0.0922]
[1763596925490,0.405504,3018.6,3017.5,0.0922]
[1763596925723,0.405504,3018.8,3017.5,0.0922]
[1763596925925,0.30611668,3018.9,3017.5,0.0922]
[1763596925926,0.405504,3018.4,3017.5,0.0922]
[1763596926127,0.405504,3018.4,3017.3,0.0922]
[1763596926301,0.405504,3018.2,3017.3,0.0922]
[1763596926723,0.405504,3018.1,3017.3,0.0922]
[1763596926932,0.405504,3018.1,3016.0,0.0932]
[1763596926933,0.405504,3018.1,3016.6,0.1854]
[1763596927142,0.405504,3017.9,3016.6,0.1854]
[1763596927496,0.899504,3017.9,3016.6,0.1854]
[1763596928429,0.99599774,3017.8,3016.6,0.1854]
[1763596929209,0.405504,3018.4,3017.7,0.1854]
[1763596929517,0.405504,3017.8,3016.6,0.1854]
[1763596929702,0.405504,3017.8,3016.1,0.113]
[1763596929905,0.405504,3017.8,3016.7,0.1854]
[1763596930910,0.2,3018.5,3017.7,0.1854]
[1763596931124,0.2,3018.5,3017.8,0.1854]
[1763596931311,0.99575311,3018.4,3017.8,0.1854]
[1763596931506,0.405504,3018.4,3017.8,0.1854]
[1763596931714,1.19571014,3018.5,3017.8,0.1854]
[1763596932031,0.16859101,3018.4,3017.8,0.1854]
[1763596932420,0.2,3019.8,3018.3,0.2776]
[1763596932421,0.4902,3019.5,3018.3,0.2776]
[1763596932619,0.9956044,3019.0,3018.4,0.1854]
[1763596932807,0.4902,3019.5,3018.4,0.1854]
[1763596933208,0.1854,3019.4,3018.4,0.1854]
[1763596933497,0.2,3019.8,3018.5,0.1854]
[1763596933702,0.2776,3019.7,3018.5,0.1854]
[1763596934229,0.2776,3019.7,3018.3,0.0922]
[1763596934230,0.4902,3019.6,3018.3,0.0922]
[1763596934431,0.4902,3019.6,3018.3,0.2776]
[1763596934653,0.405504,3019.6,3018.3,0.2776]
[1763596934947,0.1924,3019.9,3018.4,0.1854]
[1763596935126,0.6826,3019.9,3018.4,0.1854]
[1763596935315,0.405504,3020.0,3018.4,0.1854]
[1763596935514,0.4902,3020.5,3018.4,0.1854]
[1763596935515,0.113,3020.2,3018.4,0.1854]
[1763596935844,0.113,3020.2,3018.5,0.35906885]
[1763596936052,0.51951014,3019.8,3018.5,0.35906885]
[1763596936345,0.51951014,3019.8,3018.7,6.62536852]
[1763596936530,0.51951014,3019.8,3019.7,0.2786]
[1763596936724,0.113,3020.2,3019.7,0.2786]
[1763596936924,0.113,3020.2,3020.1,0.1854]
[1763596937845,0.518504,3020.7,3020.1,0.1854]
[1763596938843,0.113,3020.7,3020.1,0.1854]
[1763596939235,0.4902,3021.6,3020.6,0.1854]
[1763596939432,0.113,3021.5,3020.6,0.1854]
[1763596939612,0.113,3021.5,3019.7,0.0932]
[1763596939613,0.645,3020.7,3019.7,0.0932]
[1763596939944,0.645,3020.7,3019.7,0.2786]
[1763596940150,0.113,3020.8,3019.8,0.1854]
[1763596941008,0.407504,3020.7,3019.8,0.1854]
[1763596941552,0.002,3020.7,3019.8,0.1854]
[1763596942537,0.002,3020.7,3019.7,0.0932]
[1763596942730,0.405504,3020.5,3019.7,0.0932]
[1763596944661,0.405504,3020.4,3019.7,0.0932]
[1763596945057,0.895704,3020.4,3019.7,0.0932]
[1763596945462,0.4902,3020.3,3019.7,0.0932]
[1763596945635,0.645,3019.8,3018.9,0.1854]
[1763596946328,0.1924,3019.8,3018.9,0.1854]
[1763596946730,0.405504,3019.9,3018.9,0.1854]
[1763596947130,0.405504,3020.0,3018.9,0.1854]
[1763596947464,0.873504,3020.0,3018.9,0.1854]
[1763596947659,0.405504,3020.0,3018.9,0.1854]
[1763596948230,0.468,3020.0,3018.9,0.1854]
[1763596948631,0.405504,3020.2,3018.9,0.1854]
[1763596949066,0.405504,3020.2,3018.9,3.49782471]
[1763596949249,0.405504,3020.2,3019.0,0.34978247]
[1763596949450,0.405504,3020.2,3019.1,0.1854]
[1763596949884,0.405504,3020.2,2615.9,0.27794527]
[1763596949885,0.405504,3020.0,3018.3,0.0922]
[1763596950050,0.405504,3020.0,3018.4,0.1854]
[1763596950251,0.1986,3020.4,3018.4,0.1854]
[1763596950252,0.405504,3019.8,3018.4,0.1854]
[1763596950473,0.405504,3019.8,3018.4,0.54447101]
[1763596950692,0.405504,3019.6,3018.3,0.0922]
[1763596951094,0.405504,3019.4,3018.3,0.0922]
[1763596951251,0.405504,3019.4,3018.4,0.1854]
[1763596951652,0.88886124,3020.1,3018.4,0.54448329]
[1763596951653,0.468,3019.7,3018.4,0.54448329]
[1763596951849,0.468,3019.7,3018.4,0.1854]
[1763596952082,0.405504,3019.6,3018.5,0.1854]
[1763596952456,0.468,3019.6,3018.5,0.1854]
[1763596953166,0.405504,3020.0,3018.5,0.21852903]
[1763596953374,0.405504,3020.0,3018.5,6.81120606]
[1763596953682,1.17499116,3020.3,3018.5,6.81120606]
[1763596953867,0.468,3020.3,3018.6,0.1854]
[1763596954062,0.405504,3020.1,3018.6,0.1854]
[1763596954304,0.405504,3020.1,3018.3,0.0922]
[1763596954483,0.405504,3019.9,3018.3,0.0922]
[1763596954684,0.405504,3019.7,3018.3,0.2776]
[1763596955071,0.873504,3019.7,3018.4,0.1854]
[1763596955893,0.405504,3019.5,3018.4,0.1854]
[1763596956299,0.17623652,3019.8,3018.4,0.1854]
[1763596956300,0.405504,3019.7,3018.4,0.1854]
[1763596956609,0.405504,3019.5,3018.4,0.1854]
[1763596957505,0.51959475,3019.3,3018.4,0.1854]
[1763596957887,0.51959475,3019.3,3019.2,0.1854]
[1763596958088,0.51959475,3019.3,3018.6,0.1854]
[1763596958606,0.51959475,3019.3,3019.2,0.1854]
[1763596959410,0.51959475,3019.3,3018.8,0.1854]
[1763596959974,0.51959475,3019.3,3019.2,0.1854]
[1763596960173,0.17623652,3019.8,3019.2,0.3708]
[1763596961105,0.17623652,3019.8,3018.7,3.34580356]
[1763596961106,0.70880519,3020.0,3019.7,0.1854]
[1763596961287,0.88886124,3020.3,3019.7,0.1854]
[1763596961608,0.4941,3020.2,3019.0,0.1854]
[1763596961810,0.405504,3020.1,3019.0,0.1854]
[1763596961974,0.17884652,3020.0,3019.0,0.1854]
[1763596962503,0.88765171,3020.0,3019.0,0.1854]
[1763596962908,0.17884652,3020.0,3019.0,0.1854]
[1763596963607,0.51952057,3019.8,3018.6,3.31276183]
[1763596963803,0.51952057,3019.8,3018.9,0.1854]
[1763596964202,0.75093706,3019.8,3018.9,0.1854]
[1763596970016,0.75093706,3019.8,3019.7,0.1854]
[1763596970314,1.45974225,3019.8,3019.7,0.1854]
[1763596970620,1.45974225,3019.8,3018.7,3.31266508]
[1763596970621,0.75093706,3019.8,3019.1,0.1854]
[1763596970810,0.51952057,3019.8,3019.1,0.1854]
[1763596972094,1.22832576,3019.8,3019.1,0.1854]
[1763596972423,0.30916866,3019.7,3019.1,0.1854]
[1763596972592,0.51952057,3019.8,3019.1,0.1854]
[1763596972789,0.51952057,3019.8,3019.0,0.113]
[1763596972984,0.82868923,3019.8,3018.8,0.1854]
[1763596973323,0.20350999,3019.7,3018.8,0.2984]
[1763596973620,0.51267865,3019.7,3018.8,3.61096536]
[1763596974015,0.51267865,3019.7,3018.8,3.42556536]
[1763596974315,0.51267865,3019.7,3018.9,0.1854]
[1763596974621,0.17190893,3019.6,3018.9,0.1854]
[1763596974820,0.17190893,3019.6,3018.8,0.113]
[1763596975016,0.48107759,3019.6,3018.8,0.113]
[1763596975519,0.4941,3019.5,3018.4,0.001]
[1763596975721,0.80326866,3019.5,3018.4,0.001]
[1763596976085,0.77120315,3019.4,3018.4,0.001]
[1763596976286,0.30916866,3019.3,3018.4,0.001]
[1763596976489,0.80326866,3019.3,3018.4,0.1864]
[1763596976699,1.5155793,3019.3,3018.4,0.1864]
[1763596976900,0.30916866,3019.2,3018.4,0.1864]
[1763596977100,0.57913617,3019.2,3018.4,0.1864]
[1763596977520,0.4941,3019.1,3018.4,0.001]
[1763596977723,0.80326866,3019.1,3018.4,0.001]
[1763596978110,0.4941,3019.0,3018.4,0.001]
[1763596978996,0.30916866,3019.1,3018.4,0.001]
[1763596979224,0.30916866,3019.1,3018.4,0.1864]
[1763596979494,1.0214793,3019.1,3018.4,0.1864]
[1763596979707,0.30916866,3019.0,3018.4,0.1864]
[1763596979912,0.71231064,3019.3,3018.4,0.1864]
[1763596980139,0.4941,3019.5,3018.4,0.1864]
[1763596980140,0.30942454,3019.2,3018.4,0.1864]
[1763596980342,1.20641064,3019.5,3018.4,3.85855504]
[1763596980343,0.30942454,3019.4,3018.4,3.85855504]
[1763596980545,0.30942454,3019.4,3018.4,7.17156855]
[1763596980843,0.30942454,3019.4,3018.5,0.1854]
[1763596981143,0.30942454,3019.6,3018.6,0.113]
[1763596981344,1.38296124,3019.9,3018.6,0.113]
[1763596981345,0.30942454,3019.7,3018.6,0.113]
[1763596981650,0.16923858,3019.7,3018.7,3.49806463]
[1763596981943,1.02173518,3019.8,3019.6,0.1854]
[1763596982158,0.30942454,3019.7,3019.6,0.1854]
[1763596982359,1.02183704,3020.1,3019.7,0.1854]
[1763596982560,0.3095264,3020.0,3019.7,0.1854]
[1763596982764,0.3095264,3020.1,3019.7,0.1854]
[1763596982950,0.4961,3020.2,3019.7,0.1854]
[1763596984050,0.002,3020.2,3019.7,0.1854]
[1763596984525,0.002,3020.2,3020.1,0.2786]
[1763596984843,0.002,3020.2,3019.7,0.113]
[1763596985645,0.002,3020.2,3019.7,0.2984]
[1763596986732,0.002,3020.2,3020.1,0.2786]
[1763596987076,0.002,3020.2,3020.1,0.464]
[1763596987267,0.002,3020.2,3020.1,0.2786]
[1763596987838,0.002,3020.2,3020.1,0.464]
[1763596988147,0.002,3020.2,3020.1,4.13432616]
[1763596989357,0.002,3020.2,3020.1,4.23432616]
[1763596989764,0.002,3020.6,3020.1,10.75662342]
[1763596989966,0.002,3020.6,3020.5,0.1854]
[1763596990464,0.002,3020.6,3020.5,0.3708]
[1763596990838,0.002,3020.6,3020.5,0.4708]
[1763596991839,0.002,3020.6,3020.5,3.78151014]
[1763596992035,0.002,3020.6,3020.5,4.33151313]
[1763596997452,0.002,3020.6,3020.5,4.36462023]
[1763596998188,0.002,3020.6,3020.5,4.04611313]
[1763596998562,0.9621,3020.6,3020.0,0.001]
[1763596998703,0.4843,3020.4,3020.0,0.001]
[1763596998912,0.4778,3020.6,3020.0,0.001]
[1763596998913,0.4843,3020.1,3020.0,0.001]
[1763596999312,0.9601,3020.1,3020.0,0.001]
[1763596999674,0.13465304,3020.6,3020.0,0.001]
[1763596999869,0.4758,3020.5,3020.0,0.001]
[1763597000087,0.4843,3020.1,3020.0,0.001]
[1763597000385,0.4758,3020.5,3020.0,0.001]
[1763597001004,0.002,3020.6,3020.1,0.0932]
[1763597001214,0.4778,3020.6,3020.0,0.001]
[1763597001414,0.4843,3020.1,3020.0,0.001]
[1763597001814,0.9601,3020.1,3020.0,0.001]
[1763597003012,0.4758,3020.5,3020.0,0.001]
[1763597003212,0.4843,3020.1,3020.0,0.001]
[1763597003620,0.9601,3020.1,3020.0,0.001]
[1763597005520,0.002,3020.6,3020.0,0.1864]
[1763597006085,0.4778,3020.6,3020.0,0.1864]
[1763597006692,0.002,3020.6,3020.0,0.1864]
[1763597006901,0.002,3020.6,3020.1,0.0932]
[1763597007800,0.4721,3020.5,3020.0,0.114]
[1763597008000,0.002,3020.6,3020.5,0.1854]
[1763597008315,0.002,3020.6,3020.1,0.0932]
[1763597008500,0.4741,3020.6,3020.1,3.40434597]
[1763597008700,0.002,3020.6,3020.1,3.40434597]
[1763597009101,0.002,3020.6,3020.1,0.0932]
[1763597009423,0.002,3020.6,3020.1,3.40434339]
[1763597009740,0.002,3020.6,3020.2,0.35183434]
[1763597010128,0.476,3020.3,3020.0,0.114]
[1763597010528,0.002,3020.6,3020.0,0.114]
[1763597010529,0.476,3020.1,3020.0,0.001]
[1763597010729,0.002,3020.6,3020.0,0.001]
[1763597010906,0.4741,3020.6,3020.0,0.001]
[1763597011444,0.002,3020.6,3020.1,0.0932]
[1763597011948,0.4741,3020.6,3020.1,0.0932]
[1763597012114,0.476,3020.2,3020.0,0.001]
[1763597012302,0.476,3020.1,3020.0,0.001]
[1763597012643,0.4741,3020.6,3020.0,0.001]
[1763597012810,0.476,3020.1,3020.0,0.001]
[1763597013214,0.9481,3020.1,3020.0,0.001]
[1763597014455,0.476,3020.1,3020.0,0.001]
[1763597014606,0.9481,3020.1,3020.0,0.001]
[1763597015628,0.4721,3020.3,3020.0,0.001]
[1763597016164,0.476,3020.1,3020.0,0.001]
[1763597016806,0.9481,3020.1,3020.0,0.001]
[1763597017989,0.4526,3020.5,3020.0,0.001]
[1763597018144,0.76124801,3020.5,3020.0,0.001]
[1763597018337,0.4658,3020.1,3020.0,0.001]
[1763597018876,0.9184,3020.1,3020.0,0.001]
[1763597021968,0.405504,3020.0,3019.7,0.001]
[1763597022170,1.059404,3019.8,3019.7,0.001]
[1763597022372,0.871304,3019.7,3018.4,0.001]
[1763597022665,0.5743,3018.5,3018.4,0.001]
[1763597023048,1.0269,3018.5,3018.4,0.001]
[1763597023644,0.4658,3018.5,3018.4,0.001]
[1763597023872,0.9184,3018.5,3018.4,0.001]
[1763597024075,0.1881,3018.7,3018.4,0.001]
[1763597024441,0.6407,3018.7,3018.4,0.001]
[1763597024894,0.1881,3018.7,3018.4,0.001]
[1763597025055,0.70999841,3019.5,3018.6,0.1894]
[1763597025259,0.4526,3019.4,3018.4,0.001]
[1763597025492,0.4526,3019.4,3018.4,0.1904]
[1763597025903,0.4526,3019.6,3018.4,0.1904]
[1763597026109,0.76075688,3019.7,3018.4,0.3034]
[1763597026284,0.405504,3019.6,3018.5,0.03312903]
[1763597026463,0.405504,3019.6,3018.6,3.31279401]
[1763597026464,0.30815688,3019.6,3018.6,3.31279401]
[1763597026769,0.30815688,3019.6,3018.7,0.3535323]
[1763597026770,0.4526,3019.6,3018.7,0.3535323]
[1763597026969,0.76075688,3019.6,3018.7,0.3535323]
[1763597027405,0.4526,3019.5,3018.7,0.3535323]
[1763597027760,0.30815688,3019.6,3018.7,0.3535323]
[1763597027961,1.59064914,3020.3,3018.7,0.3535323]
[1763597027962,0.1881,3019.9,3018.7,0.3535323]
[1763597028166,0.6407,3019.9,3018.7,0.3535323]
[1763597028509,0.6407,3019.9,3018.8,6.81454906]
[1763597028510,1.1601794,3019.9,3018.8,6.81454906]
[1763597028804,1.1601794,3019.9,3018.8,0.2894]
[1763597029004,1.1601794,3019.9,3018.9,0.1894]
[1763597029185,1.1601794,3019.9,3018.9,0.58496146]
[1763597030718,0.7075794,3019.9,3018.9,3.70800382]
[1763597031021,0.7075794,3019.9,3018.9,3.89740382]
[1763597031427,0.7075794,3019.9,3019.0,0.113]
[1763597031787,0.4526,3019.8,3018.7,0.0962]
[1763597032121,0.76087578,3019.8,3018.7,0.0962]
[1763597032318,0.76087578,3019.8,3018.6,0.113]
[1763597032525,0.76087578,3019.8,3018.8,0.001]
[1763597032526,0.405504,3019.6,3018.8,0.001]
[1763597032682,0.71377978,3019.6,3018.8,0.001]
[1763597032883,0.6539,3018.9,3018.8,0.001]
[1763597033308,0.1881,3019.1,3018.8,0.001]
[1763597033586,0.4526,3019.7,3018.8,0.001]
[1763597033811,0.4526,3019.6,3018.8,0.001]
[1763597034423,0.44084962,3019.7,3018.8,0.1904]
[1763597034424,0.1326944,3019.7,3018.8,0.1904]
[1763597034625,1.1601794,3019.9,3018.8,3.502905]
[1763597034925,1.1601794,3019.9,3018.9,0.3615905]
[1763597035229,0.7075794,3019.9,3018.9,0.5509905]